Cogmind - Beta 13 @@@ ROGUE MODE // 2024.04.01 @ 17:32:44 Player: Dami Result: Destroyed by Y-45 Defender with Beam Rifle Performance ------------- Evolutions (1) 500 Regions Visited (2) 400 Robots Destroyed (34) 170 Value Destroyed (759) 759 Prototype IDs (3) 60 Alien Tech Used (0) 0 Bonus (0) 0 TOTAL SCORE: 1889 Bonus ------- None Cogmind --------- Core Integrity 0/400 Matter 210/300 Energy 80/100 System Corruption 2% Temperature Warning (347) Movement Core (100) Ox1 Location -9/Materials Parts ------- > --- POWER (1) -------- (None) > --- PROPULSION (2) --- (None) > --- UTILITY (3) ------ Small Storage Unit Visual Processing Unit Improved Targeting Computer > --- WEAPON (3) ------- (None) > --- INVENTORY (8) ---- Aluminum Leg Aluminum Leg Improved Heat Sink High-capacity Matter Pod (67) EM Pulse Gun EM Pulse Gun Assault Rifle Datajack Peak State ------------ > --- POWER ------------ Light Ion Engine > --- PROPULSION ------- Light Treads Light Treads > --- UTILITY ---------- Small Storage Unit Visual Processing Unit Improved Targeting Computer > --- WEAPON ----------- Beam Rifle Particle Gun Improved Medium Laser > --- INVENTORY -------- Aluminum Leg Aluminum Leg Improved Heat Sink High-capacity Matter Pod EM Pulse Gun EM Pulse Gun Assault Rifle Datajack [Rating: 16] Favorites ----------- Power Light Ion Engine Engine Light Ion Engine Propulsion Light Treads Treads Light Treads Utility Small Storage Unit Storage Small Storage Unit Processor Visual Processing Unit Weapon Assault Rifle Energy Gun EM Pulse Gun Ballistic Gun Assault Rifle Launcher Grenade Launcher Build | -11 -10 -9 ------- Run | Yrd Mat Mat Slots Evolved 2 | . . 2 Power . | . . . Propulsion . | . . . Utility 1 | . . 1 Weapon 1 | . . 1 Parts Attached 20 | 5 8 7 Power 1 | . 1 . Engine 1 | . 1 . Core . | . . . Reactor . | . . . Propulsion 4 | 2 1 1 Treads 4 | 2 1 1 Leg . | . . . Wheel . | . . . Hover . | . . . Flight . | . . . Utility 5 | 1 2 2 Device . | . . . Storage 2 | 1 . 1 Processor 3 | . 2 1 Hackware . | . . . Protection . | . . . Artifact . | . . . Weapon 10 | 2 4 4 Energy Gun 6 | . 2 4 Energy Cannon . | . . . Ballistic Gun 3 | 2 1 . Ballistic Cannon . | . . . Launcher 1 | . 1 . Special Weapon . | . . . Impact Weapon . | . . . Slashing Weapon . | . . . Piercing Weapon . | . . . Special Melee Weapon . | . . . Unidentified Prototypes . | . . . Parts Lost 9 | . 3 6 Power 1 | . . 1 Propulsion 3 | . 1 2 Utility . | . . . Weapon 5 | . 2 3 Highest Loss Streak 6 | . 2 6 To Critical Strikes . | . . . Average Slot Usage (%) 92 | . 92 92 Engine 8 | . 8 8 Treads 26 | . 28 19 Storage 14 | . 14 17 Processor 12 | . 11 15 Energy Gun 9 | . 5 27 Ballistic Gun 12 | . 15 3 Launcher 5 | . 6 . Naked Turns . | . . . Heaviest Build 21 | 9 13 21 Greatest Support 40 | 40 40 40 Greatest Overweight (x) 2 | . . 2 Average Overweight (x) . | . . . Largest Inventory Capacity 8 | 8 8 8 Average Capacity 7 | 6 8 8 Most Carried 8 | 2 8 8 Average Carried 5 | . 5 7 Final Capacity 8 | 8 8 8 Final Carried 8 | 2 7 8 Class Distribution -------------------- 86% | Mutant 9% | Scavenger-Skirmisher 3% | Scavenger-Gunner Dominant Class ---------------- Mutant | -10/Materials Scavenger-Skirmisher | -9/Materials Resources | -11 -10 -9 ----------- Run | Yrd Mat Mat Matter Collected 748 | 168 552 28 Remotely . | . . . Salvage Created 950 | . 622 328 Parts 63 | . 47 16 Haulers Intercepted 1 | . 1 . Recyclers Shooed 1 | . 1 . Parts Field Recycled . | . . . Retrieved Matter . | . . . Parts Self-Destructed . | . . . Prevented . | . . . Kills | -11 -10 -9 ------- Run | Yrd Mat Mat Combat Hostiles Destroyed 17 | . 11 6 Guns 10 | . 5 5 AOE 6 | . 6 . Classes Destroyed 10 | . 8 2 Worker 5 | . 5 . Builder 2 | . 2 . Hauler 1 | . 1 . Recycler 4 | . 4 . Operator 1 | . 1 . Watcher 4 | . 3 1 Swarmer 3 | . 3 . Grunt 12 | . 8 4 Brawler 1 | . . 1 Sentry 1 | . . 1 Best Kill Streak 7 | . 7 3 Combat Bots Only 3 | . 3 3 Max Kills in Single Turn 3 | . 3 1 Gunslinging . | . . . Exploded 1 | . 1 . Melee . | . . . Uniques/NPCs Destroyed . | . . . Combat | -11 -10 -9 -------- Run | Yrd Mat Mat Hostile Shots Fired 122 | . 59 63 Missed 33 | . 20 13 Damage Taken 1410 | . 587 823 Core 477 | . 70 407 Absorbed by Shields . | . . . Core Remaining (%) 86 | 100 72 . Volleys Fired 68 | . 48 20 Largest 3 | . 2 3 Hottest 177 | . 60 177 Shots Fired 133 | . 90 43 Gun 105 | . 62 43 Cannon . | . . . Launcher 28 | . 28 . Special . | . . . Kinetic 52 | . 51 1 Thermal 52 | . 11 41 Explosive 28 | . 28 . Electromagnetic 1 | . . 1 Robot Hit Streak 12 | . 8 12 Robot Miss Streak 4 | . 3 4 Penetration Max . | . . . Secondary Targets 2 | . . 2 Max Gunslinging Chain 1 | . . 1 Shots Hit Robots 74 | . 40 34 Core Hits 56 | . 44 12 Critical Kills . | . . . Critical Parts Destroyed . | . . . Critical Strikes 2 | . . 2 Burn 2 | . . 2 Melee Attacks . | . . . Impact . | . . . Slashing . | . . . Piercing . | . . . Sneak Attacks . | . . . Combat Hostiles . | . . . Follow-up Attacks . | . . . Damage Inflicted 2112 | . 1535 577 Guns 932 | . 366 566 Cannons . | . . . Explosions 1169 | . 1169 . Melee . | . . . Ramming 11 | . . 11 Kinetic 298 | . 298 . Thermal 634 | . 68 566 Explosive 1169 | . 1169 . Electromagnetic . | . . . Impact . | . . . Slashing . | . . . Piercing . | . . . Highest Corruption . | . . . Average Corruption . | . . . Corruption Purged . | . . . Corruption Blocked . | . . . Overload Shots . | . . . Overflow Damage 23 | . 23 . Projectiles . | . . . Explosions 23 | . 23 . Melee . | . . . Knockbacks . | . . . Impact . | . . . Kinetic . | . . . Secondary . | . . . Self-Inflicted Damage 123 | . 118 5 Shots 7 | . 7 . Rammed 8 | . . 8 Targets Rammed 9 | . 1 8 Kicked . | . . . Crushed 1 | . 1 . Highest Temperature 666 | . 87 666 Average Temperature 263 | . 58 344 Received Heat Transfer 570 | . 255 315 Effects 13 | . . 13 Energy Bleed 4 | . . 4 Matter Decay 2 | . . 2 Short Circuit 2 | . . 2 Damage (major) 3 | . . 3 Damage (core) 2 | . . 2 Siege Activations . | . . . Robots Corrupted . | . . . Combat Hostiles . | . . . Parts Fried . | . . . Impact Corruptions . | . . . Robots Melted 1 | . . 1 Combat Hostiles 1 | . . 1 Parts Melted 3 | . . 3 Heat Transferred 1630 | . 150 1480 Parts Sabotaged . | . . . Parts Stolen . | . . . Parts Stripped . | . . . Power Chain Reactions . | . . . Alert | -11 -10 -9 ------- Run | Yrd Mat Mat Peak Influence 274 | . 274 183 Initial 33 | . . 33 Average 153 | . 184 55 Maximum Alert Level 1 | . 1 . Low Security (%) 63 | 100 53 100 Level 1 36 | . 46 . Level 2 . | . . . Level 3 . | . . . Level 4 . | . . . Level 5 . | . . . High Security . | . . . Max Security . | . . . Squads Dispatched 3 | . 3 . Investigation 2 | . 2 . Extermination . | . . . Reinforcement 1 | . 1 . Assault . | . . . Garrison . | . . . Intercept . | . . . Searches Triggered . | . . . Construction Impeded . | . . . Haulers Reinforced . | . . . Active Scanning Responses . | . . . Cargo Convoy Interrupts . | . . . Stealth | -11 -10 -9 --------- Run | Yrd Mat Mat Distress Signals 2 | . 2 . Communications Jammed . | . . . Distress Signals . | . . . Times Spotted 26 | . 16 10 Peak Tracking Total 7 | . 4 7 Tactical Retreats . | . . . Traps | -11 -10 -9 ------- Run | Yrd Mat Mat Traps Triggered 3 | . 2 1 Indirectly . | . . . Trap Hack Attempts . | . . . Triggered . | . . . Disarmed . | . . . Reprogrammed . | . . . Reused . | . . . Traps Extracted . | . . . Installed . | . . . Triggered . | . . . Machines | -11 -10 -9 ---------- Run | Yrd Mat Mat Machines Disabled 9 | . 9 . Max in Single Turn 2 | . 2 . Machines Repaired . | . . . Machines Dismantled . | . . . Machines Sabotaged . | . . . Overloaded Fab Kills . | . . . Hacking | -11 -10 -9 --------- Run | Yrd Mat Mat Machines Accessed 11 | . 9 2 Terminals 8 | . 7 1 Fabricators . | . . . Repair Stations 1 | . 1 . Recycling Units 1 | . 1 . Scanalyzers 1 | . . 1 Garrison Access . | . . . Total Hacks 26 | . 19 7 Successful 12 | . 8 4 Failed 14 | . 11 3 Catastrophic 2 | . 2 . Database Lockouts . | . . . Manual . | . . . Terminals 16 | . 14 2 Fabricators . | . . . Repair Stations 4 | . 4 . Recycling Units 1 | . 1 . Scanalyzers 5 | . . 5 Garrison Access . | . . . Terminal Hacks 8 | . 6 2 Record 2 | . 2 . Prototype ID Bank 1 | . 1 . Emergency Access Points 2 | . 1 1 Unreport Threat 1 | . . 1 Security Status 1 | . 1 . Zone Layout 1 | . 1 . Fabricator Hacks . | . . . Repair Station Hacks 1 | . 1 . Scan Component 1 | . 1 . Recycling Unit Hacks 1 | . 1 . Retrieve Matter 1 | . 1 . Scanalyzer 2 | . . 2 Insert Component 1 | . . 1 Analyze 1 | . . 1 Garrison Access Hacks . | . . . Unauthorized Hacks . | . . . Terminals . | . . . Fabricators . | . . . Repair Stations . | . . . Recycling Units . | . . . Scanalyzers . | . . . Garrison Access . | . . . Data Cores Recovered 1 | . 1 . Used . | . . . Hacking Detections 7 | . 6 1 Full Trace Events 2 | . 1 1 Feedback Events . | . . . Feedback Blocked . | . . . Robot Schematics Acquired . | . . . Robots Built . | . . . Authchips . | . . . Time . | . . . Total Robot Build Rating . | . . . Part Schematics Acquired 1 | . . 1 Parts Built . | . . . Authchips . | . . . Time . | . . . Total Part Build Rating . | . . . Parts Repaired . | . . . Time . | . . . Parts Recycled . | . . . Recycled Matter . | . . . Retrieved Matter 115 | . 115 . Retrieved Components . | . . . Parts Scanalyzed 1 | . . 1 Part Schematics Acquired 1 | . . 1 Parts Damaged . | . . . Bothacking | -11 -10 -9 ------------ Run | Yrd Mat Mat Used RIF Installer . | . . . Robots Hacked . | . . . Non-combat . | . . . Combat . | . . . Robot Hacks Applied . | . . . Relay Couplers Released . | . . . Fabnet Peak Effective % . | . . . Robots Rewired . | . . . Allies Hacked . | . . . Hacks Repelled . | . . . Allies | -11 -10 -9 -------- Run | Yrd Mat Mat Total Allies . | . . . Largest Group . | . . . Highest-Rated Group . | . . . Highest-Rated Ally . | . . . Total Orders . | . . . Ally Attacks . | . . . Total Damage . | . . . Kills . | . . . Allies Corrupted . | . . . Allies Melted . | . . . Intel | -11 -10 -9 ------- Run | Yrd Mat Mat Robot Analysis Total . | . . . Derelict Logs Recovered . | . . . Drone Launches . | . . . Drone Recoveries . | . . . Exploration | -11 -10 -9 ------------- Run | Yrd Mat Mat Turns Passed 2064 | 75 1611 378 Spaces Moved 1118 | 42 899 177 Core 3 | 1 . 2 Treads 1115 | 41 899 175 Legs . | . . . Wheels . | . . . Hover . | . . . Flight . | . . . Fastest Speed 50 | 50 160 150 Average Speed 160 | 157 160 162 Slowest Speed 240 | 160 160 240 Overloaded Moves . | . . . Propulsion Burnouts . | . . . Robots Hopped . | . . . Cave-ins Triggered . | . . . Exploration Rate (%) 40 | 4 94 22 Regions Visited 2 Branch Regions . Pre-discovered Areas . | . . . Known Exits Taken . | . . . Unknown Exits Taken 2 | 1 1 . Scrap Searched . | . . . Spaces Dug . | . . . Terrain Destroyed 115 | . 115 . Melee . | . . . Projectile . | . . . AOE 115 | . 115 . Terrain Rammed . | . . . Walls Destroyed . | . . . Machines Disabled . | . . . Actions | -11 -10 -9 --------- Run | Yrd Mat Mat Total 1258 | 49 982 227 Wait 22 | 1 13 8 Move 1116 | 41 898 177 Hop . | . . . Pick Up 15 | 2 11 2 Fast Attach 9 | 5 1 3 Attach 11 | . 7 4 Detach 6 | . 2 4 Swap . | . . . Drop 2 | . 1 1 Fire 68 | . 48 20 Melee . | . . . Ram 8 | . . 8 Kick . | . . . Crush 1 | . 1 . Escape Stasis . | . . . Rewire . | . . . Trap . | . . . Miscellaneous . | . . . Route ------- -11/Scrapyard -10/Materials (discovered 6 exits: *Mat x3 / [*Min x2] / [*Sub]) -9/Materials History --------- Turn | Location | Event 14 | -11/Scrapyard | Discovered new exit (range 15) 76 | -11/Scrapyard | Entered Materials 76 | -10/Materials | Discovered new exit (range 7) 306 | -10/Materials | Build established: Mutant 526 | -10/Materials | Discovered new exit (range 10) 571 | -10/Materials | Discovered new exit (range 9) 739 | -10/Materials | Discovered new exit (range 15) 1174 | -10/Materials | Discovered new exit (range 17) 1316 | -10/Materials | Discovered new exit (range 3) 1687 | -10/Materials | Entered another Materials area 1687 | -9/Materials | Evolved 2 slots: Utility x1, Weapon x1 2042 | -9/Materials | Core integrity fell below 50% 2054 | -9/Materials | Core integrity fell below 20% 2065 | -9/Materials | Destroyed by Y-45 Defender with Beam Rifle Last Messages --------------- Overheating: Short circuit. Slammed into Y-45 Defender. Imp. Medium Laser broken. Destabilizing: Short circuit. Overheating: Energy bleed (-3). K-01 Serf collects debris. Slammed into Y-45 Defender. K-01 Serf collects debris. Slammed into Y-45 Defender. K-01 Serf collects debris. Slammed into Y-45 Defender. Destabilizing: System interference. Imp. Targeting Computer temporarily disabled. Broken Imp. Medium Laser destroyed. Slammed into Y-45 Defender. Imp. Targeting Computer broken. Destabilizing: Short circuit. K-01 Serf collects debris. Slammed into Y-45 Defender. Destabilizing: System corrupted (+2). Map ----- +----------------------------------------------------+ | ""S"" #?????##########???????????????????????????? | | "" "" #?????# #???????????????????????????? | | #?????# #???????????????????????????? | | " """ #?????# #???????????????????????????? | | " """ #?????# #???????????????????????????? | | " """ #?????# #???????????????????????????? | | #?????# #???????????????????????????? | | #+###+#?????# #???????????????????????????? | | ####??# #???????????????????????????? | | #??# = #???????????????????????????? | | ##### #??#####+#####??????????????????????????? | | #+######+##????# #??????????????????????????? | | ###### ##+#####??????????????????????? | | + # #??????????????????????? | | ! ###### # #??????????????????????? | | #????# # #??????????????????????? | | ! #????# # #????? ???????????????? | | #????# ######### #??????????????? | | ###########????# ??????????????? | | ???????????????# ??????????????? | | ???????????????# ??????????????? | | ??????????????###+############ #???????????????? | | ??????????????# #????????????????????? | | ??????????????# k #????????????????????? | | ??????????????# !k #????????????????????? | | ??????????????#] k @Y #????????????????????? | | ??????????????# #????????????????????? | | ??????????????# % #????????????????????? | | ??????????????########+##+###????????????????????? | | ?????????????????????# % ?????????????????????? | | ????????????????????? ???????????????????? | | ????????????????????## % ?????????????????? | | ?????????????????????# #### ???????????????? | | ?????????????????????#% #???######??????????????? | | ?????????????????????# #???????????????????????? | | ?????????????????????# %#???????????????????????? | | ?????????????????????# #???????????????????????? | | ?????????????????????# % #???????????????????????? | | ?????????????????????# #???????????????????????? | | ????????????????????? ???????????????????????? | | ????????????????????? ???????????????????????? | | ????????????????????? ???????????????????????? | | ???????????????????? ???????????????????????? | | ????????????????????# #??????????????????????? | | ?????????????????????####????????????????????????? | | ?????????????????????????????????????????????????? | | ?????????????????????????????????????????????????? | | ?????????????????????????????????????????????????? | | ?????????????????????????????????????????????????? | | ?????????????????????????????????????????????????? | +----------------------------------------------------+ Best States ------------- Heat Dissipation 28 Energy Generation 10 Energy Capacity 125 Matter Stores 367 Matter Capacity 500 Sight Range 18 Terrain Scan Density 10 Evasion (%) 40 Targeting Accuracy 6 Recoil Reduction 2 Item Schematics ----------------- Imp. Medium Laser | -9/Materials | Scanalyzed Robot Schematics ------------------ None Fabricated ------------ Nothing Alien Tech Used ----------------- None Achievements -------------- It's Just You Safety First Challenges ------------ None Game ------ Seed KineticNullEngine Manual? 0 Play Time 00:18:51 Cumulative 1.6 hours Start 2024.04.01 @ 17:13:14 End 2024.04.01 @ 17:32:44 Sessions 1 Manual Loads 0 Difficulty Rogue Special Mode None Game No. 4 Rogue 4 Adventurer 0 Explorer 0 Win Type - Total 0 Types 0/0/0/0/0/0/0/0/0 Lore% 1 Gallery% 5 Achievement% 5 Wizard Run 0 Options --------- Layout 2 ASCII 0 Keyboard 1 Movement Numpad Keybinds 0 Fullscreen 2 Font 24/Smallcaps Map View 50x44 Zoom Use 0% Tactical HUD 0 Map Filters NONE Filters NONE Steam 1 RUN: ace63cee-a196-46a8-8e52-86c203ac00d6